[Event "EIWCC 2017"]
[Site "Riga"]
[Date "2017.04.19"]
[Round "8"]
[White "Antova, Gabriela"]
[Black "Toma, Katarzyna"]
[Result "0-1"]
[ECO "D70"]
[WhiteElo "2335"]
[BlackElo "2229"]
[Annotator "NA"]
[PlyCount "54"]
[EventDate "2017.??.??"]
[EventType "swiss"]
[EventCountry "LAT"]
[SourceTitle "playchess.com"]
[Source "ChessBase"]
[SourceQuality "1"]
[TimeControl "40/5400+30:1800+30"]

{[%evp 8,54,14,17,39,34,44,39,24,32,36,16,27,32,18,-2,0,-2,36,-4,23,-9,11,-39,0,-56,0,-40,-29,-25,-22,-22,-23,0,0,-11,6,14,0,0,0,0,0,0,181,32767,162,-484,-504]} 1. d4 {[%emt 0:00:00]} Nf6 {[%emt 0:00:10]} 2. c4 {[%emt 0:00:00]} g6 {[%emt 0:00:14]} 3. Nf3 {[%emt 0:00:00]} Bg7 {[%emt 0:00:24]} 4. g3 {[%emt 0:00:16]} O-O {[%emt 0:00:26]} 5. Bg2 {[%emt 0:00:05]} d6 {[%emt 0:00:36]} 6. O-O {[%emt 0:01:03]} c6 {[%emt 0:01:10]} 7. Nc3 {[%emt 0:00:20]} Nbd7 {[%emt 0:00:49]} 8. e4 {[%emt 0:00:58]} e5 {[%emt 0:00:41]} 9. Rb1 {[%emt 0:09:52]} a5 {[%emt 0:06:33]} 10. b3 {[%emt 0:00:53] LiveBook: 8 Games E68: King's Indian: Fianchetto: 6...Nbd7 7 0-0 e5 8 e4} (10. h3 Re8 11. Be3 exd4 12. Nxd4 Nc5 13. Qc2 Qc7 14. Rfe1 Bd7 15. b3 Rad8 16. Rbd1 Bc8 17. f4 h6 18. Bf2 Nh5 19. Qd2 Nf6 20. Kh2 {0-1 (49) Goloshchapov,A (2586)-Sriram,J (2375) Dubai 2014}) 10... Re8 {[%emt 0:00:34]} 11. d5 $146 {[%emt 0:10:15]} ({Better is} 11. h3 $14 exd4 12. Nxd4 Nc5 13. Re1 Qb6 14. Be3 Qb4 15. Bd2 Qb6 16. Be3 Qb4 17. Bd2 Qb6 18. Be3 Qb4 19. Bd2 {½-½ (19) Kleissl,H (2290)-Weindl,A (2329) Austria 2013}) 11... cxd5 {[%emt 0:01:08]} 12. cxd5 {[%emt 0:00:12]} Nc5 {[%emt 0:00:12]} 13. Re1 {[%emt 0:02:27]} ({Much weaker is} 13. Bg5 b5 $15) 13... Bd7 {[%emt 0:05:40]} 14. a3 {[%emt 0:04:18]} Qc7 {[%emt 0:04:58]} 15. Bd2 {[%emt 0:08:35]} ({White must play} 15. a4 $1 $11) 15... Rec8 {[%emt 0:04:35]} 16. Qe2 {[%emt 0:06:33]} ({Better is} 16. a4 $11) 16... Qb6 {[%emt 0:09:45]} 17. b4 {[%emt 0:14:24]} axb4 {[%emt 0:00:27]} 18. axb4 {[%emt 0:00:05]} Na4 {[%emt 0:00:57]} 19. Nxa4 {[%emt 0:01:37]} Rxa4 {[%emt 0:02:28]} 20. Rec1 {[%emt 0:00:55]} Rca8 {[%emt 0:02:31]} 21. Be3 {[%emt 0:10:46]} Qb5 {[%emt 0:03:31]} 22. Qe1 {[%emt 0:02:41]} Qa6 {[%emt 0:18:22]} 23. Rc7 {[%emt 0:07:14]} Be8 {[%emt 0:03:11]} 24. Nd2 {[%emt 0:03:46]} Ng4 {[%emt 0:03:52]} 25. Nc4 {[%emt 0:02:48]} Bb5 $2 {[%emt 0:07:17]} (25... Nxe3 $11 {and Black stays safe.} 26. Nxe3 (26. Qxe3 Bf6 27. Qb6 Bb5 28. Qxd6 Bd8 29. Qxa6 Bxa6 $14) 26... Qb6) 26. Bf1 {[%emt 0:02:30]} Bf6 $2 {[%emt 0:08:27]} (26... Ra2 $11 {and Black stays safe.}) 27. Kg2 $19 {[%emt 0:01:44]} (27. Nb6 $18 {was the only winning move.} Nxe3 28. Nxa8 (28. Qxe3 Ra3 29. Qxa3 Qxa3 $11) 28... Nxf1 29. Rc8+ Kg7 30. Nc7 Nxh2 31. Kxh2) 27... Bd8 {[%emt 0:02:25]} 0-1

[Event "EIWCC 2017"]
[Site "Riga"]
[Date "2017.04.19"]
[Round "8"]
[White "Gara, Ticia"]
[Black "Gevorgyan, Maria"]
[Result "0-1"]
[ECO "A14"]
[WhiteElo "2325"]
[BlackElo "2227"]
[Annotator "NA"]
[PlyCount "74"]
[EventDate "2017.??.??"]
[EventType "swiss"]
[EventCountry "LAT"]
[SourceTitle "playchess.com"]
[Source "ChessBase"]
[SourceQuality "1"]
[TimeControl "40/5400+30:1800+30"]

{[%evp 8,61,18,32767,32767,32767,32767,22,26,-27,-20,0,0,0,10,-13,32767,20,37,8,20,7,55,51,68,58,75,91,104,21,74,6,6,35,9,-87,-33,-32,-46,-52,-37,-43,-9,-12,0,-669,-760,32767,-718,-750,-851,-1408,32767,32767,32767,-1766]} 1. c4 {[%emt 0:00:59]} Nf6 {[%emt 0:00:11]} 2. Nf3 {[%emt 0:00:19]} e6 {[%emt 0:00:06]} 3. g3 {[%emt 0:00:22]} d5 {[%emt 0:00:11]} 4. Bg2 {[%emt 0:00:12]} Be7 {[%emt 0:00:05]} 5. O-O {[%emt 0:01:03]} O-O {[%emt 0:00:07]} 6. d4 {[%emt 0:00:04]} dxc4 {[%emt 0:00:04]} 7. Ne5 {[%emt 0:00:52]} Nc6 {[%emt 0:00:06]} 8. Nxc6 {[%emt 0:01:05]} bxc6 {[%emt 0:00:05]} 9. Na3 {[%emt 0:00:14]} Bxa3 {[%emt 0:00:12]} 10. bxa3 {[%emt 0:00:04]} a5 {[%emt 0:01:40] LiveBook: 4 Games E05: Open Catalan: 5 Nf3 Be7} 11. a4 $146 {[%emt 0:05:57]} (11. Bxc6 Rb8 12. Qc2 Ba6 13. Rd1 Nd5 14. e4 Ne7 15. Ba4 f5 16. d5 exd5 17. exd5 Rf7 18. Be3 {1-0 (117) Kramnik,V (2777)-Bruzon Batista,L (2659) Baku 2015}) 11... Qe7 {[%emt 0:06:37]} 12. Qc2 {[%emt 0:07:04]} Ba6 {[%emt 0:03:28]} 13. Bd2 {[%emt 0:04:42]} Nd5 {[%emt 0:10:18]} 14. Bxa5 {[%emt 0:02:46]} Bc8 {[%emt 0:12:11]} 15. Bd2 {[%emt 0:03:24]} Qa3 {[%emt 0:01:49]} 16. e4 {[%emt 0:12:18]} Ne7 {[%emt 0:11:06]} 17. a5 {[%emt 0:01:56]} Ba6 {[%emt 0:02:23]} 18. Rfc1 {[%emt 0:06:08]} ({White should play} 18. Rfe1 $16) 18... Rad8 {[%emt 0:02:41]} 19. Rab1 {[%emt 0:10:39]} (19. Bf1 $16) 19... c5 {[%emt 0:03:24]} 20. dxc5 {[%emt 0:11:25]} Nc6 $1 {[%emt 0:00:10]} 21. Be3 {[%emt 0:04:41]} (21. Bc3 $11 {remains equal.}) 21... Nd4 {[%emt 0:11:14]} 22. Bxd4 $1 {[%emt 0:09:50]} Rxd4 {[%emt 0:00:08]} 23. Qb2 {[%emt 0:01:30]} Qxc5 {[%emt 0:00:42]} 24. Qb4 {[%emt 0:01:25]} Qa7 {[%emt 0:03:11]} 25. Rd1 {[%emt 0:00:28]} e5 {[%emt 0:03:28]} 26. Qe7 $2 {[%emt 0:00:50]} (26. Bf3 $11) 26... c3 {[%emt 0:00:58]} 27. Rbc1 {[%emt 0:06:01]} c2 {[%emt 0:03:19]} 28. Rxd4 {[%emt 0:03:57]} Qxd4 {[%emt 0:00:07]} 29. Bf3 {[%emt 0:00:16]} Qd2 {[%emt 0:02:11]} 30. Qa3 {[%emt 0:00:01]} Rb8 {[%emt 0:00:12]} 31. Kg2 $19 {[%emt 0:01:28]} Rb1 {[%emt 0:02:43]} 32. Qe7 {[%emt 0:01:07]} Qd6 {[%emt 0:00:15]} 33. Qg5 {[%emt 0:01:32]} h6 {[%emt 0:00:14]} 34. Qe3 {[%emt 0:00:11]} Qd3 {[%emt 0:00:41]} 35. Qe1 {[%emt 0:02:09]} Qf1+ {[%emt 0:00:32]} 36. Qxf1 {[%emt 0:00:04]} Bxf1+ {[%emt 0:00:04]} 37. Rxf1 {[%emt 0:00:10]} Rxf1 {[%emt 0:00:05]} 0-1

[Event "EIWCC 2017"]
[Site "Riga"]
[Date "2017.04.19"]
[Round "8"]
[White "Berzina, Ilze"]
[Black "Hoolt, Sarah"]
[Result "1/2-1/2"]
[ECO "B40"]
[WhiteElo "2297"]
[BlackElo "2398"]
[Annotator "NA"]
[PlyCount "89"]
[EventDate "2017.??.??"]
[EventType "swiss"]
[EventCountry "LAT"]
[SourceTitle "playchess.com"]
[Source "ChessBase"]
[SourceQuality "1"]
[TimeControl "40/5400+30:1800+30"]

1. d4 {[%emt 0:00:00]} Nf6 {[%emt 0:00:11]} 2. c4 {[%emt 0:00:00]} e6 {[%emt 0:00:05]} 3. Nf3 {[%emt 0:00:00]} Bb4+ {[%emt 0:00:08]} 4. Bd2 {[%emt 0:00:24]} c5 {[%emt 0:00:16]} 5. e3 {[%emt 0:08:31]} O-O {[%emt 0:02:06] LiveBook: 51 Games} 6. Bd3 {[%emt 0:03:06]} Nc6 {[%emt 0:07:06] E11: Bogo-Indian} (6... b6 7. O-O Bb7 8. Nc3 cxd4 9. exd4 d5 10. cxd5 Nxd5 11. Qc2 Nf6 12. Ne4 Bxd2 13. Nxf6+ Qxf6 14. Bxh7+ Kh8 15. Be4 Rc8 16. Qd3 Bxe4 17. Qxe4 Nc6 18. Nxd2 Qxd4 {0-1 (27) Cori Tello,D (2434)-Nakamura,H (2772) Tromsoe 2013}) 7. Nc3 {[%emt 0:06:19]} d5 {[%emt 0:21:20]} 8. a3 {[%emt 0:05:27]} cxd4 {[%emt 0:08:47]} 9. exd4 {[%emt 0:02:02]} dxc4 {[%emt 0:04:09]} 10. Bxc4 {[%emt 0:00:52]} Ba5 {[%emt 0:04:37]} 11. b4 {[%emt 0:11:40]} Bb6 {[%emt 0:02:00]} 12. Be3 {[%emt 0:03:52]} Ng4 $146 {[%emt 0:10:56]} (12... Bd7 13. O-O Rc8 14. Qe2 Qc7 15. Nb5 Nxd4 16. Bxd4 Qxc4 17. Qxc4 Rxc4 18. Bxb6 Bxb5 19. Bxa7 {0-1 (52) Motola,J (1993)-Damia,A (2281) Milan 2012}) 13. Qd3 {[%emt 0:06:38]} Ne7 {[%emt 0:13:09]} 14. Rd1 {[%emt 0:18:10]} Nd5 {[%emt 0:06:14]} 15. O-O {[%emt 0:06:11]} Ngxe3 {[%emt 0:01:44]} 16. fxe3 {[%emt 0:00:06]} Nxc3 {[%emt 0:00:13]} 17. Qxc3 {[%emt 0:00:04]} Bd7 {[%emt 0:00:26]} 18. Ne5 {[%emt 0:01:35]} Ba4 {[%emt 0:06:08]} 19. Rd2 {[%emt 0:02:35]} Rc8 {[%emt 0:01:30]} 20. Qd3 {[%emt 0:00:51]} Qe7 {[%emt 0:01:31]} 21. Qe4 {[%emt 0:08:14]} f5 {[%emt 0:02:26]} 22. Qd3 {[%emt 0:02:40]} Kh8 {[%emt 0:01:41]} 23. Rdf2 {[%emt 0:01:03]} Bc7 {[%emt 0:03:02]} 24. Nf3 {[%emt 0:02:52]} Bc6 {[%emt 0:01:01]} 25. Qb3 {[%emt 0:00:15]} Rce8 {[%emt 0:00:53]} 26. b5 {[%emt 0:01:07]} Bd7 {[%emt 0:04:33]} 27. Qd3 {[%emt 0:03:12]} Rf6 {[%emt 0:01:09]} 28. e4 {[%emt 0:01:20]} Bc8 {[%emt 0:02:36]} 29. Kh1 {[%emt 0:00:29]} fxe4 {[%emt 0:00:52]} 30. Qxe4 {[%emt 0:00:03]} Rf4 {[%emt 0:00:06]} 31. Qe3 {[%emt 0:01:01]} Ref8 {[%emt 0:00:57]} 32. a4 {[%emt 0:04:04]} R4f6 {[%emt 0:01:01]} 33. Ne5 {[%emt 0:00:56]} b6 {[%emt 0:00:29]} 34. Nc6 {[%emt 0:00:37]} Qd6 {[%emt 0:00:09]} 35. g3 {[%emt 0:00:12]} Rxf2 {[%emt 0:00:51]} 36. Rxf2 {[%emt 0:00:01]} Rxf2 {[%emt 0:00:20]} 37. Qxf2 {[%emt 0:00:01]} Bb7 {[%emt 0:00:15]} 38. Qf3 {[%emt 0:00:26]} h6 {[%emt 0:00:45]} 39. Qe4 {[%emt 0:00:30]} e5 {[%emt 0:00:43]} 40. Bd3 {[%emt 0:00:00]} Kg8 {[%emt 0:00:31]} 41. dxe5 $14 {[%emt 0:24:54]} Bxc6 {[%emt 0:06:51]} 42. exd6 {[%emt 0:02:50]} Bxe4+ {[%emt 0:00:31]} 43. Bxe4 {[%emt 0:00:04]} Bxd6 {[%emt 0:00:05]} 44. Bd5+ {[%emt 0:00:33]} Kf8 {[%emt 0:00:06]} 45. Kg2 {[%emt 0:00:21]} 1/2-1/2

[Event "EIWCC 2017"]
[Site "Riga"]
[Date "2017.04.19"]
[Round "8"]
[White "Galojan, Lilit"]
[Black "De Seroux, Camille"]
[Result "1-0"]
[ECO "E16"]
[WhiteElo "2290"]
[BlackElo "2122"]
[Annotator "ChessBase"]
[PlyCount "172"]
[EventDate "2017.??.??"]
[EventType "swiss"]
[EventCountry "LAT"]
[SourceTitle "playchess.com"]
[Source "ChessBase"]
[SourceQuality "1"]
[TimeControl "5400+30"]

1. d4 {[%emt 0:00:00]} Nf6 {[%emt 0:00:02]} 2. c4 {[%emt 0:00:00]} g6 {[%emt 0:00:06]} 3. Nc3 {[%emt 0:00:00]} Bg7 {[%emt 0:00:06]} 4. e4 {[%emt 0:00:07]} d6 {[%emt 0:00:05]} 5. h3 {[%emt 0:00:06]} O-O {[%emt 0:00:26]} 6. Be3 {[%emt 0:00:06]} c5 {[%emt 0:02:21]} 7. d5 {[%emt 0:01:39]} e6 {[%emt 0:00:18]} 8. Bd3 {[%emt 0:00:54]} exd5 {[%emt 0:00:42]} 9. cxd5 {[%emt 0:00:39]} a6 {[%emt 0:01:02]} 10. Nf3 {[%emt 0:02:03]} Nbd7 {[%emt 0:02:27]} 11. Qd2 {[%emt 0:07:48]} Re8 {[%emt 0:03:35]} 12. O-O {[%emt 0:14:19]} b5 {[%emt 0:01:21]} 13. a3 {[%emt 0:01:08]} c4 {[%emt 0:02:17]} 14. Bc2 {[%emt 0:02:21]} Qc7 {[%emt 0:00:54]} 15. Bh6 {[%emt 0:06:12]} Bh8 {[%emt 0:03:02]} 16. Ng5 {[%emt 0:08:16]} Nc5 {[%emt 0:11:33]} 17. Qf4 {[%emt 0:03:14]} Nh5 {[%emt 0:10:46]} 18. Qf3 {[%emt 0:04:02]} f6 {[%emt 0:03:00]} 19. g4 {[%emt 0:02:44]} fxg5 {[%emt 0:02:12]} 20. gxh5 {[%emt 0:00:31]} Qf7 {[%emt 0:02:59]} 21. Qg2 {[%emt 0:04:39]} gxh5 {[%emt 0:06:38]} 22. Bxg5 {[%emt 0:02:36]} Qg7 {[%emt 0:02:36]} 23. Kh2 {[%emt 0:08:45]} Qg6 {[%emt 0:04:26]} 24. Bf4 {[%emt 0:03:03]} Be5 {[%emt 0:04:02]} 25. Bxe5 {[%emt 0:03:52]} dxe5 {[%emt 0:03:05]} 26. Rg1 {[%emt 0:03:11]} Kg7 {[%emt 0:02:39]} 27. Bd1 {[%emt 0:01:16]} Kh6 {[%emt 0:02:05]} 28. f3 {[%emt 0:03:02]} Qf6 {[%emt 0:02:37]} 29. Ne2 {[%emt 0:03:31]} Bd7 {[%emt 0:02:02]} 30. Ng3 {[%emt 0:01:34]} Rg8 {[%emt 0:00:46]} 31. Qd2+ {[%emt 0:09:21]} Qf4 {[%emt 0:00:48]} 32. Qxf4+ {[%emt 0:01:02]} exf4 {[%emt 0:00:05]} 33. Ne2 {[%emt 0:00:14]} Rxg1 {[%emt 0:01:28]} 34. Nxg1 {[%emt 0:00:47]} Rf8 {[%emt 0:04:42]} 35. Bc2 {[%emt 0:00:20]} Kg5 {[%emt 0:01:03]} 36. Re1 {[%emt 0:00:55]} Nb7 {[%emt 0:01:25]} 37. Re2 {[%emt 0:00:34]} h6 {[%emt 0:01:04]} 38. Rg2+ {[%emt 0:00:16]} Kf6 {[%emt 0:00:35]} 39. Ne2 {[%emt 0:00:07]} Ke5 {[%emt 0:01:20]} 40. Rg7 {[%emt 0:00:51]} Nc5 {[%emt 0:00:39]} 41. Rg6 {[%emt 0:00:49]} Rh8 {[%emt 0:00:44]} 42. Rg7 {[%emt 0:00:38]} Kf6 {[%emt 0:02:00]} 43. Rg1 {[%emt 0:00:37]} Ke5 {[%emt 0:00:50]} 44. Rg6 {[%emt 0:01:30]} Be8 {[%emt 0:02:17]} 45. Rg1 {[%emt 0:01:17]} Bd7 {[%emt 0:00:08]} 46. Rg7 {[%emt 0:00:45]} Kf6 {[%emt 0:00:12]} 47. Rg1 {[%emt 0:00:32]} Ke5 {[%emt 0:00:05]} 48. Rb1 {[%emt 0:00:35]} Rg8 {[%emt 0:04:22]} 49. b3 {[%emt 0:00:10]} c3 {[%emt 0:01:37]} 50. b4 {[%emt 0:00:17]} Na4 {[%emt 0:00:43]} 51. Bxa4 {[%emt 0:00:12]} bxa4 {[%emt 0:00:05]} 52. h4 {[%emt 0:00:24]} c2 {[%emt 0:04:49]} 53. Rc1 {[%emt 0:00:16]} Rc8 {[%emt 0:00:03]} 54. Kg2 {[%emt 0:00:25]} Bb5 {[%emt 0:00:02]} 55. Kf2 {[%emt 0:01:23]} Rc7 {[%emt 0:01:20]} 56. Ke1 {[%emt 0:00:20]} Bxe2 {[%emt 0:00:44]} 57. Kxe2 {[%emt 0:00:06]} Rc3 {[%emt 0:00:04]} 58. Kd2 {[%emt 0:00:23]} Rxf3 {[%emt 0:00:03]} 59. Kxc2 {[%emt 0:00:28]} Rxa3 {[%emt 0:00:55]} 60. Re1 {[%emt 0:00:43]} Rh3 {[%emt 0:00:43]} 61. Rd1 {[%emt 0:00:41]} Kd6 {[%emt 0:02:48]} 62. e5+ {[%emt 0:00:17]} Kd7 {[%emt 0:00:27]} 63. d6 {[%emt 0:00:07]} Re3 {[%emt 0:00:37]} 64. Rd5 {[%emt 0:00:30]} f3 {[%emt 0:00:44]} 65. Rc5 {[%emt 0:00:09]} f2 66. Rc7+ {[%emt 0:00:10]} Kd8 {[%emt 0:01:15]} 67. Rf7 {[%emt 0:00:16]} Rxe5 {[%emt 0:00:04]} 68. Rxf2 {[%emt 0:00:15]} Kd7 {[%emt 0:00:24]} 69. Kb2 {[%emt 0:00:37]} a5 {[%emt 0:01:32]} 70. bxa5 {[%emt 0:00:27]} Rxa5 {[%emt 0:00:03]} 71. Ka3 {[%emt 0:00:06]} Rd5 {[%emt 0:00:47]} 72. Rf4 {[%emt 0:00:57]} Ke6 {[%emt 0:00:41]} 73. Kxa4 {[%emt 0:00:43]} Rxd6 {[%emt 0:00:11]} 74. Kb4 {[%emt 0:00:13]} Rd5 {[%emt 0:00:28]} 75. Kc4 {[%emt 0:00:22]} Rf5 {[%emt 0:00:16]} 76. Re4+ {[%emt 0:00:48]} Kf6 {[%emt 0:00:51]} 77. Kd3 {[%emt 0:00:26]} Rf3+ {[%emt 0:00:16]} 78. Ke2 {[%emt 0:00:09]} Rg3 {[%emt 0:00:11]} 79. Kf2 {[%emt 0:00:18]} Rg4 {[%emt 0:00:11]} 80. Kf3 {[%emt 0:01:43]} Kf5 {[%emt 0:00:24]} 81. Rxg4 {[%emt 0:00:38]} hxg4+ {[%emt 0:00:14]} 82. Kg3 {[%emt 0:00:33]} h5 {[%emt 0:00:02]} 83. Kf2 {[%emt 0:00:10]} Kf4 {[%emt 0:00:11]} 84. Kg2 {[%emt 0:00:11]} g3 {[%emt 0:00:04]} 85. Kg1 {[%emt 0:00:11]} Kg4 {[%emt 0:00:16]} 86. Kg2 {[%emt 0:00:09]} Kxh4 {[%emt 0:00:03]} 1-0

[Event "EIWCC 2017"]
[Site "Riga"]
[Date "2017.04.19"]
[Round "8"]
[White "Unuk, Laura"]
[Black "Michna, Marta"]
[Result "1-0"]
[ECO "A40"]
[WhiteElo "2275"]
[BlackElo "2389"]
[Annotator "NA"]
[PlyCount "53"]
[EventDate "2017.??.??"]
[EventType "swiss"]
[EventCountry "LAT"]
[SourceTitle "playchess.com"]
[Source "ChessBase"]
[SourceQuality "1"]
[TimeControl "40/5400+30:1800+30"]

1. d4 {[%emt 0:00:00]} e6 {[%emt 0:00:16]} 2. c4 {[%emt 0:00:00]} b6 {[%emt 0:00:04]} 3. Nf3 {[%emt 0:02:15]} Bb7 {[%emt 0:00:09]} 4. g3 {[%emt 0:00:07]} f5 {[%emt 0:00:16]} 5. Bg2 {[%emt 0:00:34]} Nf6 {[%emt 0:00:06]} 6. O-O {[%emt 0:03:38]} g6 {[%emt 0:00:25]} 7. Nc3 {[%emt 0:01:02]} Bg7 {[%emt 0:00:11] A84: Dutch Defence: 2 c4 Miscellaneous} 8. d5 {[%emt 0:00:30] LiveBook: 22 Games} (8. Bg5 O-O 9. Qd2 d6 10. d5 e5 11. e4 fxe4 12. Bxf6 Bxf6 13. Nxe4 {0-1 (37) Smirnov,A (2429)-Bortnyk,O (2552) Boeblingen 2015}) 8... Na6 {[%emt 0:19:48]} 9. Bf4 {[%emt 0:22:43]} Nc5 {[%emt 0:00:08]} (9... O-O $11) 10. Nb5 {[%emt 0:03:10]} d6 {[%emt 0:08:49]} (10... O-O $16) 11. dxe6 $2 $146 {[%emt 0:03:01]} (11. b4 $18 Na6 (11... Nce4 12. Nfd4 exd5 13. f3 Qe7 14. fxe4 Nxe4 15. Ne6 {1-0 (15) Ausmins,E (2261)-Di Gianni,R (2120) Castellaneta 1999}) 12. dxe6) 11... Nfe4 {[%emt 0:12:35]} 12. Ng5 {[%emt 0:12:10]} a6 {[%emt 0:23:02]} 13. Nf7 {[%emt 0:19:19]} Qe7 {[%emt 0:04:26]} 14. Bxe4 {[%emt 0:10:44]} ({Not} 14. Nxh8 axb5 15. f3 (15. cxb5 $2 Bxb2 16. Nf7 Nxe6 $19) 15... Nf6 $17) 14... Nxe4 {[%emt 0:00:41] [#]} 15. Nxc7+ $1 {[%emt 0:00:10]} ({Inferior is} 15. Nxh8 axb5 16. Nf7 (16. cxb5 $2 Bxh8 17. Qc2 Nc5 $19) 16... Qxe6 $17) 15... Qxc7 {[%emt 0:00:11]} 16. f3 {[%emt 0:00:33]} Qc5+ {[%emt 0:15:25]} 17. e3 {[%emt 0:00:22]} g5 {[%emt 0:03:31]} 18. fxe4 {[%emt 0:01:23]} gxf4 {[%emt 0:00:30]} 19. Nxd6+ {[%emt 0:01:11]} Kf8 {[%emt 0:01:16]} 20. Qh5 $18 {[%emt 0:02:43]} Qc7 {[%emt 0:01:30]} 21. Rxf4 {[%emt 0:01:24]} Kg8 {[%emt 0:00:15]} 22. Rxf5 {[%emt 0:03:30]} Bc6 {[%emt 0:01:48]} 23. Raf1 {[%emt 0:02:15]} Qe7 {[%emt 0:01:38]} 24. Rf7 {[%emt 0:07:05]} Qxe6 {[%emt 0:02:20]} 25. Nf5 {[%emt 0:00:08]} Bf8 {[%emt 0:01:36]} 26. Qg5+ {[%emt 0:00:46]} Qg6 {[%emt 0:00:59]} 27. Rg7+ {[%emt 0:00:11]} 1-0

[Event "EIWCC 2017"]
[Site "Riga"]
[Date "2017.04.19"]
[Round "8"]
[White "Golubenko, Valentina"]
[Black "Chan, Naruna"]
[Result "1-0"]
[ECO "A05"]
[WhiteElo "2271"]
[BlackElo "1981"]
[Annotator "ChessBase"]
[PlyCount "128"]
[EventDate "2017.??.??"]
[EventType "swiss"]
[EventCountry "LAT"]
[SourceTitle "playchess.com"]
[Source "ChessBase"]
[SourceQuality "1"]
[TimeControl "40/5400+30:1800+30"]

1. e4 {[%emt 0:00:00]} e5 {[%emt 0:00:07]} 2. Nf3 {[%emt 0:00:00]} Nc6 {[%emt 0:00:05]} 3. Bb5 {[%emt 0:00:00]} a6 {[%emt 0:00:08]} 4. Ba4 {[%emt 0:00:00]} Nf6 {[%emt 0:00:07]} 5. O-O {[%emt 0:00:04]} Be7 {[%emt 0:00:29]} 6. d3 {[%emt 0:00:57]} b5 {[%emt 0:00:43]} 7. Bb3 {[%emt 0:00:05]} d6 {[%emt 0:01:14]} 8. c3 {[%emt 0:01:08]} O-O {[%emt 0:01:01]} 9. Re1 {[%emt 0:00:25]} Na5 {[%emt 0:01:51]} 10. Bc2 {[%emt 0:00:31]} c5 {[%emt 0:00:32]} 11. a4 {[%emt 0:01:08]} Rb8 {[%emt 0:03:48]} 12. axb5 {[%emt 0:01:55]} axb5 {[%emt 0:00:09]} 13. Nbd2 {[%emt 0:04:24]} Qc7 {[%emt 0:05:16]} 14. Nf1 {[%emt 0:03:37]} Bd7 {[%emt 0:18:32]} 15. Ne3 {[%emt 0:03:59]} Rfe8 {[%emt 0:06:55]} 16. h3 {[%emt 0:09:11]} Bf8 {[%emt 0:06:05]} 17. Nh2 {[%emt 0:03:11]} Be6 {[%emt 0:03:29]} 18. Nhg4 {[%emt 0:07:03]} Nxg4 {[%emt 0:02:46]} 19. hxg4 {[%emt 0:00:14]} Nc6 {[%emt 0:03:09]} 20. Bb3 {[%emt 0:14:24]} Qd7 {[%emt 0:02:56]} 21. Bd2 {[%emt 0:09:20]} Ne7 {[%emt 0:08:37]} 22. Bxe6 {[%emt 0:10:08]} Qxe6 {[%emt 0:10:00]} 23. c4 {[%emt 0:09:49]} bxc4 {[%emt 0:01:29]} 24. Nxc4 {[%emt 0:00:12]} Nc6 {[%emt 0:03:14]} 25. Bc3 {[%emt 0:11:07]} d5 {[%emt 0:04:44]} 26. exd5 {[%emt 0:00:14]} Qxd5 {[%emt 0:00:01]} 27. Ne3 {[%emt 0:02:04]} Qd8 {[%emt 0:04:26]} 28. Nc4 {[%emt 0:03:29]} Qd5 {[%emt 0:03:19]} 29. Ne3 {[%emt 0:00:07]} Qd7 {[%emt 0:02:19]} 30. Nc4 {[%emt 0:00:35]} Qc7 {[%emt 0:01:06]} 31. Ra6 {[%emt 0:03:04]} Re6 {[%emt 0:02:02]} 32. Qa4 {[%emt 0:00:32]} Rbe8 {[%emt 0:01:35]} 33. Ne3 {[%emt 0:00:57]} Nd4 {[%emt 0:01:02]} 34. Ra7 {[%emt 0:00:11]} Qd8 {[%emt 0:00:16]} 35. Nf5 {[%emt 0:01:31]} Qf6 {[%emt 0:01:32]} 36. Ng3 {[%emt 0:01:16]} Qg6 {[%emt 0:00:36]} 37. Qd1 {[%emt 0:00:07]} Qg5 {[%emt 0:00:59]} 38. Ne4 {[%emt 0:00:18]} Qg6 {[%emt 0:01:28]} 39. Ng3 {[%emt 0:00:12]} Be7 {[%emt 0:00:42]} 40. Ne4 {[%emt 0:00:00]} Bf8 {[%emt 0:00:43]} 41. Ra5 {[%emt 0:04:50]} Rc6 {[%emt 0:00:56]} 42. Qa4 {[%emt 0:07:47]} Rec8 {[%emt 0:02:54]} 43. Qd1 {[%emt 0:00:57]} Ra6 {[%emt 0:01:12]} 44. Rxa6 {[%emt 0:01:42]} Qxa6 {[%emt 0:00:02]} 45. Ng3 {[%emt 0:01:02]} Qd6 {[%emt 0:03:05]} 46. Qa4 {[%emt 0:00:44]} Qd5 {[%emt 0:01:28]} 47. Qa6 {[%emt 0:01:36]} Rd8 {[%emt 0:07:46]} 48. Qb6 {[%emt 0:01:14]} Rd6 {[%emt 0:01:18]} 49. Qb8 {[%emt 0:00:39]} Nc6 {[%emt 0:01:58]} 50. Qa8 {[%emt 0:04:02]} Rd8 {[%emt 0:05:09]} 51. Qb7 {[%emt 0:00:14]} Rb8 {[%emt 0:00:50]} 52. Rxe5 {[%emt 0:01:34]} Qxe5 {[%emt 0:00:39]} 53. Qxc6 {[%emt 0:00:07]} Qe8 {[%emt 0:02:46]} 54. Qf3 {[%emt 0:00:57]} Ra8 {[%emt 0:00:09]} 55. Ne4 {[%emt 0:00:46]} Ra1+ {[%emt 0:00:53]} 56. Kh2 {[%emt 0:00:03]} Qe6 {[%emt 0:00:42]} 57. g5 {[%emt 0:01:30]} Qg6 {[%emt 0:01:16]} 58. b4 {[%emt 0:01:27]} Ra2 {[%emt 0:01:12]} 59. Nxc5 {[%emt 0:03:00]} h6 {[%emt 0:00:34]} 60. Ne4 {[%emt 0:02:11]} hxg5 {[%emt 0:00:17]} 61. g4 {[%emt 0:00:49]} Bd6+ {[%emt 0:00:54]} 62. Kg2 {[%emt 0:01:30]} Bf4 {[%emt 0:00:10]} 63. Ng3 {[%emt 0:03:00]} Bxg3 {[%emt 0:01:13]} 64. Kxg3 {[%emt 0:00:33]} Ra3 {[%emt 0:00:24]} 1-0